[Event "Live Chess"]
[Site "Chess.com"]
[Date "2024.06.01"]
[Round "-"]
[White "RichardABates"]
[Black "Ferrarifan27"]
[Result "1-0"]
[WhiteElo "2232"]
[BlackElo "2053"]
[TimeControl "300"]
[EndTime "12:47:57 PDT"]
[Termination "RichardABates won on time"]

1. d4 {[%clk 0:04:57.6]} 1... Nf6 {[%clk 0:04:57.8]} 2. Nf3 {[%clk 0:04:56]}
2... d5 {[%clk 0:04:56.1]} 3. c4 {[%clk 0:04:54.6]} 3... e6 {[%clk 0:04:54.9]}
4. g3 {[%clk 0:04:53.1]} 4... Be7 {[%clk 0:04:53]} 5. Bg2 {[%clk 0:04:51.9]}
5... O-O {[%clk 0:04:51.9]} 6. O-O {[%clk 0:04:50.3]} 6... dxc4 {[%clk
0:04:49.6]} 7. Qc2 {[%clk 0:04:48.8]} 7... Bd7 {[%clk 0:04:46.9]} 8. Qxc4 {[%clk
0:04:46.4]} 8... Bc6 {[%clk 0:04:46.1]} 9. Nc3 {[%clk 0:04:43.3]} 9... Nbd7
{[%clk 0:04:44.6]} 10. Qd3 {[%clk 0:04:40.6]} 10... Re8 {[%clk 0:04:27.9]} 11.
Rd1 {[%clk 0:04:35.2]} 11... Bb4 {[%clk 0:04:18.5]} 12. Bg5 {[%clk 0:04:29.5]}
12... h6 {[%clk 0:04:13.6]} 13. Bxf6 {[%clk 0:04:27]} 13... Nxf6 {[%clk
0:04:12.6]} 14. a3 {[%clk 0:04:22.1]} 14... Bxc3 {[%clk 0:04:03.9]} 15. bxc3
{[%clk 0:04:20.4]} 15... Be4 {[%clk 0:03:59.5]} 16. Qe3 {[%clk 0:04:18.9]} 16...
Bd5 {[%clk 0:03:54.9]} 17. Rdc1 {[%clk 0:04:12]} 17... b5 {[%clk 0:03:51.7]} 18.
a4 {[%clk 0:04:09.9]} 18... a6 {[%clk 0:03:49.3]} 19. Ne5 {[%clk 0:04:05.7]}
19... Bxg2 {[%clk 0:03:41.7]} 20. Kxg2 {[%clk 0:04:04.6]} 20... Qd5+ {[%clk
0:03:39]} 21. Qf3 {[%clk 0:03:54.2]} 21... Qxf3+ {[%clk 0:03:34.7]} 22. Kxf3
{[%clk 0:03:52.7]} 22... Reb8 {[%clk 0:03:29.4]} 23. a5 {[%clk 0:03:46.5]} 23...
Rd8 {[%clk 0:03:23.7]} 24. e4 {[%clk 0:03:37.6]} 24... Rd6 {[%clk 0:03:21.1]}
25. Ke3 {[%clk 0:03:28.4]} 25... Nd7 {[%clk 0:03:16.1]} 26. Nd3 {[%clk
0:03:22.1]} 26... Rc6 {[%clk 0:03:14.9]} 27. e5 {[%clk 0:03:11.6]} 27... Rc8
{[%clk 0:03:08]} 28. f4 {[%clk 0:03:08.3]} 28... Rc4 {[%clk 0:02:52.4]} 29. Nb2
{[%clk 0:03:05.8]} 29... Rc6 {[%clk 0:02:48.1]} 30. g4 {[%clk 0:02:55.8]} 30...
Kf8 {[%clk 0:02:43.2]} 31. f5 {[%clk 0:02:54.2]} 31... Ke7 {[%clk 0:02:36.1]}
32. Rab1 {[%clk 0:02:45.9]} 32... h5 {[%clk 0:02:19.2]} 33. g5 {[%clk 0:02:27]}
33... exf5 {[%clk 0:02:15.4]} 34. h4 {[%clk 0:02:25.5]} 34... Nf8 {[%clk
0:02:09.7]} 35. d5 {[%clk 0:02:19.4]} 35... Rg6 {[%clk 0:02:00.4]} 36. Nd3
{[%clk 0:02:15.1]} 36... Nd7 {[%clk 0:01:55.9]} 37. Kf4 {[%clk 0:02:09.8]} 37...
c6 {[%clk 0:01:47]} 38. c4 {[%clk 0:02:06.9]} 38... cxd5 {[%clk 0:01:32.5]} 39.
cxd5 {[%clk 0:02:05.3]} 39... Kd8 {[%clk 0:01:24.3]} 40. Rxc8+ {[%clk
0:02:01.6]} 40... Kxc8 {[%clk 0:01:23.1]} 41. Kxf5 {[%clk 0:01:59.6]} 41... Kd8
{[%clk 0:01:18.6]} 42. Nf4 {[%clk 0:01:57.8]} 42... Nf8 {[%clk 0:01:15.7]} 43.
Nxg6 {[%clk 0:01:55.4]} 43... Nxg6 {[%clk 0:01:14.8]} 44. Rb4 {[%clk 0:01:52.5]}
44... Ne7+ {[%clk 0:01:08.2]} 45. Ke4 {[%clk 0:01:50]} 45... Ng6 {[%clk
0:01:07.3]} 46. Ke3 {[%clk 0:01:40.9]} 46... Nxe5 {[%clk 0:01:05.5]} 47. Kd4
{[%clk 0:01:37.3]} 47... Nc4 {[%clk 0:00:59]} 48. Kc5 {[%clk 0:01:23.5]} 48...
Nxa5 {[%clk 0:00:56.3]} 49. Kb6 {[%clk 0:01:19.1]} 49... Nc4+ {[%clk 0:00:52.3]}
50. Kxa6 {[%clk 0:01:17.6]} 50... Nd6 {[%clk 0:00:49.9]} 51. Kb6 {[%clk
0:01:14.3]} 51... Kd7 {[%clk 0:00:48.9]} 52. Kc5 {[%clk 0:01:12.9]} 52... g6
{[%clk 0:00:43.3]} 53. Rf4 {[%clk 0:01:09.7]} 53... Ke7 {[%clk 0:00:33.3]} 54.
Kc6 {[%clk 0:01:08.3]} 54... Nf5 {[%clk 0:00:14.6]} 55. Re4+ {[%clk 0:01:05.7]}
55... Kd8 {[%clk 0:00:13.3]} 56. d6 {[%clk 0:01:02.3]} 56... Ng3 {[%clk
0:00:06.2]} 57. Re5 {[%clk 0:00:54.2]} 57... Nf5 {[%clk 0:00:04.9]} 58. Re4
{[%clk 0:00:50.3]} 58... Ng3 {[%clk 0:00:03.6]} 59. Rb4 {[%clk 0:00:47.5]} 59...
Nf5 {[%clk 0:00:02.7]} 60. Rb1 {[%clk 0:00:42]} 60... Nd4+ {[%clk 0:00:01.5]}
61. Kd5 {[%clk 0:00:39.6]} 1-0

[Event "Live Chess"]
[Site "Chess.com"]
[Date "2024.06.01"]
[Round "-"]
[White "DarranAS"]
[Black "Bradfield133"]
[Result "0-1"]
[WhiteElo "1456"]
[BlackElo "1924"]
[TimeControl "300"]
[EndTime "12:47:57 PDT"]
[Termination "Bradfield133 won by resignation"]

1. e4 {[%clk 0:04:56.7]} 1... c5 {[%clk 0:04:58.7]} 2. f4 {[%clk 0:04:55]} 2...
d5 {[%clk 0:04:55.6]} 3. exd5 {[%clk 0:04:53.1]} 3... Nf6 {[%clk 0:04:53.9]} 4.
Nc3 {[%clk 0:04:52.3]} 4... Nxd5 {[%clk 0:04:51.8]} 5. Bc4 {[%clk 0:04:45.1]}
5... e6 {[%clk 0:04:42.5]} 6. Nge2 {[%clk 0:04:38.1]} 6... Be7 {[%clk
0:04:26.4]} 7. O-O {[%clk 0:04:34.9]} 7... O-O {[%clk 0:04:25]} 8. f5 {[%clk
0:04:28.4]} 8... Nxc3 {[%clk 0:04:22.3]} 9. Nxc3 {[%clk 0:04:22.9]} 9... Qd4+
{[%clk 0:04:20.7]} 10. Kh1 {[%clk 0:04:09.5]} 10... Qxc4 {[%clk 0:04:19.5]} 11.
d3 {[%clk 0:04:08.4]} 11... Qd4 {[%clk 0:04:04.8]} 12. Qf3 {[%clk 0:04:04]}
12... exf5 {[%clk 0:03:59.1]} 13. Qg3 {[%clk 0:03:57.2]} 13... Bd6 {[%clk
0:03:36.9]} 14. Bf4 {[%clk 0:03:54.3]} 14... Bxf4 {[%clk 0:03:27.8]} 15. Rxf4
{[%clk 0:03:54.2]} 15... Qd6 {[%clk 0:03:21.1]} 16. Raf1 {[%clk 0:03:43.2]}
16... Nc6 {[%clk 0:03:17.3]} 17. Qg5 {[%clk 0:03:35.6]} 17... Qg6 {[%clk
0:03:09.1]} 18. Qh4 {[%clk 0:03:27.2]} 18... Be6 {[%clk 0:02:59.3]} 19. R1f3
{[%clk 0:03:22.3]} 19... f6 {[%clk 0:02:48.4]} 20. Rg3 {[%clk 0:03:15.9]} 20...
Qf7 {[%clk 0:02:47.2]} 21. Rh3 {[%clk 0:03:09.6]} 21... g5 {[%clk 0:02:45.2]}
22. Rg3 {[%clk 0:03:05.4]} 22... Kh8 {[%clk 0:02:39.4]} 23. Rxg5 {[%clk
0:03:03.8]} 23... fxg5 {[%clk 0:02:37.6]} 24. Qxg5 {[%clk 0:03:03]} 24... Qg6
{[%clk 0:02:27]} 0-1

[Event "Live Chess"]
[Site "Chess.com"]
[Date "2024.06.01"]
[Round "-"]
[White "Dhaydon19"]
[Black "CarmelJane"]
[Result "1-0"]
[WhiteElo "2682"]
[BlackElo "2077"]
[TimeControl "300"]
[EndTime "12:48:04 PDT"]
[Termination "Dhaydon19 won by resignation"]

1. d4 {[%clk 0:04:57.4]} 1... Nf6 {[%clk 0:04:58.7]} 2. Nf3 {[%clk 0:04:57.1]}
2... e6 {[%clk 0:04:57.5]} 3. g3 {[%clk 0:04:56.8]} 3... c5 {[%clk 0:04:55.8]}
4. Bg2 {[%clk 0:04:56.4]} 4... cxd4 {[%clk 0:04:55.7]} 5. Nxd4 {[%clk
0:04:55.7]} 5... Nc6 {[%clk 0:04:55.4]} 6. Nxc6 {[%clk 0:04:45.1]} 6... bxc6
{[%clk 0:04:54]} 7. O-O {[%clk 0:04:44.8]} 7... d5 {[%clk 0:04:51.6]} 8. c4
{[%clk 0:04:43.7]} 8... Rb8 {[%clk 0:04:45.5]} 9. Qc2 {[%clk 0:04:42.2]} 9...
Ba6 {[%clk 0:04:32.2]} 10. Nd2 {[%clk 0:04:39]} 10... Bb4 {[%clk 0:04:21.5]} 11.
b3 {[%clk 0:04:37.4]} 11... O-O {[%clk 0:04:18.3]} 12. Rd1 {[%clk 0:04:33.2]}
12... Qb6 {[%clk 0:03:58.8]} 13. Nf3 {[%clk 0:04:25.7]} 13... Bc5 {[%clk
0:03:45.6]} 14. e3 {[%clk 0:04:23.2]} 14... Ne4 {[%clk 0:03:29.3]} 15. Ne5
{[%clk 0:04:19.1]} 15... Nf6 {[%clk 0:03:01.7]} 16. Bb2 {[%clk 0:04:15.9]} 16...
Bxe3 {[%clk 0:02:55.8]} 17. fxe3 {[%clk 0:04:13.6]} 17... Qxe3+ {[%clk
0:02:55.7]} 18. Qf2 {[%clk 0:04:12.6]} 18... Qg5 {[%clk 0:02:41.8]} 19. Nxc6
{[%clk 0:04:10.3]} 19... Ng4 {[%clk 0:02:34.7]} 20. Qf4 {[%clk 0:04:08.7]} 20...
Qxf4 {[%clk 0:02:28.8]} 21. gxf4 {[%clk 0:04:08.1]} 21... Rb6 {[%clk 0:02:03.5]}
22. cxd5 {[%clk 0:04:05.7]} 22... Kh8 {[%clk 0:02:03.2]} 23. dxe6 {[%clk
0:04:02.1]} 23... fxe6 {[%clk 0:01:57.2]} 24. Rd7 {[%clk 0:04:00.8]} 1-0

[Event "Live Chess"]
[Site "Chess.com"]
[Date "2024.06.01"]
[Round "-"]
[White "NeilDruggan73"]
[Black "AlexanderMatlak"]
[Result "0-1"]
[WhiteElo "1755"]
[BlackElo "2485"]
[TimeControl "300"]
[EndTime "12:48:14 PDT"]
[Termination "AlexanderMatlak won by checkmate"]

1. d4 {[%clk 0:04:55.2]} 1... Nf6 {[%clk 0:04:58.7]} 2. Bg5 {[%clk 0:04:52.5]}
2... Ne4 {[%clk 0:04:57]} 3. h4 {[%clk 0:04:49]} 3... c5 {[%clk 0:04:55.5]} 4.
d5 {[%clk 0:04:46.6]} 4... h6 {[%clk 0:04:50.9]} 5. Bf4 {[%clk 0:04:43.7]} 5...
Qb6 {[%clk 0:04:48.6]} 6. Nd2 {[%clk 0:04:40.1]} 6... Qxb2 {[%clk 0:04:41.9]} 7.
Rb1 {[%clk 0:03:59.5]} 7... Qd4 {[%clk 0:04:12]} 8. Nxe4 {[%clk 0:03:57.9]} 8...
Qxe4 {[%clk 0:04:10.1]} 9. e3 {[%clk 0:03:56.2]} 9... d6 {[%clk 0:04:05]} 10.
Nf3 {[%clk 0:03:49]} 10... Nd7 {[%clk 0:03:53.5]} 11. c4 {[%clk 0:03:39]} 11...
Qf5 {[%clk 0:03:46.5]} 12. Bd3 {[%clk 0:03:34.3]} 12... Qf6 {[%clk 0:03:45.4]}
13. O-O {[%clk 0:03:21.3]} 13... Nb6 {[%clk 0:03:32.7]} 14. a4 {[%clk
0:03:12.5]} 14... Bg4 {[%clk 0:03:29.6]} 15. a5 {[%clk 0:03:10.9]} 15... Nd7
{[%clk 0:03:26.5]} 16. Be4 {[%clk 0:03:01.6]} 16... g5 {[%clk 0:03:24.7]} 17.
hxg5 {[%clk 0:02:27.1]} 17... hxg5 {[%clk 0:03:24.6]} 18. Bxg5 {[%clk
0:02:24.2]} 18... Qg7 {[%clk 0:03:23.4]} 19. Bf4 {[%clk 0:01:56.2]} 19... f5
{[%clk 0:03:20.8]} 20. Rxb7 {[%clk 0:00:49.9]} 20... Qh7 {[%clk 0:03:06.6]} 21.
Bh2 {[%clk 0:00:16.9]} 21... Bxf3 {[%clk 0:03:03.6]} 22. Qxf3 {[%clk 0:00:08]}
22... Qxh2# {[%clk 0:03:01.7]} 0-1

[Event "Live Chess"]
[Site "Chess.com"]
[Date "2024.06.01"]
[Round "-"]
[White "FlyingChessKestrel13"]
[Black "Pandreq"]
[Result "1-0"]
[WhiteElo "2077"]
[BlackElo "1140"]
[TimeControl "300"]
[EndTime "12:48:19 PDT"]
[Termination "FlyingChessKestrel13 won by resignation"]

1. d4 {[%clk 0:04:58.1]} 1... d5 {[%clk 0:04:58.9]} 2. Bf4 {[%clk 0:04:57.1]}
2... Nf6 {[%clk 0:04:56.2]} 3. e3 {[%clk 0:04:56.6]} 3... c6 {[%clk 0:04:54]} 4.
c3 {[%clk 0:04:56.2]} 4... Bf5 {[%clk 0:04:51.7]} 5. Nf3 {[%clk 0:04:55.5]} 5...
e6 {[%clk 0:04:50.4]} 6. Bd3 {[%clk 0:04:54.7]} 6... Bxd3 {[%clk 0:04:49]} 7.
Qxd3 {[%clk 0:04:53.6]} 7... Nbd7 {[%clk 0:04:48.2]} 8. Nbd2 {[%clk 0:04:52.4]}
8... Be7 {[%clk 0:04:46.8]} 9. c4 {[%clk 0:04:51.7]} 9... O-O {[%clk 0:04:45.6]}
10. O-O {[%clk 0:04:50.2]} 10... a6 {[%clk 0:04:40.9]} 11. cxd5 {[%clk
0:04:49.8]} 11... Nxd5 {[%clk 0:04:39]} 12. Bg3 {[%clk 0:04:48.8]} 12... N7f6
{[%clk 0:04:37]} 13. Ne5 {[%clk 0:04:47.6]} 13... Bd6 {[%clk 0:04:26.3]} 14. e4
{[%clk 0:04:43.8]} 14... Bxe5 {[%clk 0:04:20.4]} 15. dxe5 {[%clk 0:04:41.2]}
15... Nb4 {[%clk 0:04:09.8]} 16. Qc3 {[%clk 0:04:35.5]} 16... Nxe4 {[%clk
0:04:02.9]} 17. Nxe4 {[%clk 0:04:32.7]} 17... Nd5 {[%clk 0:04:02]} 18. Qb3
{[%clk 0:04:30.6]} 18... b5 {[%clk 0:03:59.1]} 19. Rac1 {[%clk 0:04:29.2]} 19...
Qb6 {[%clk 0:03:42.6]} 20. Qc2 {[%clk 0:04:23.6]} 20... Rac8 {[%clk 0:03:40]}
21. Ng5 {[%clk 0:04:16.6]} 21... g6 {[%clk 0:03:34.6]} 22. Ne4 {[%clk
0:04:13.2]} 22... Nb4 {[%clk 0:03:21.5]} 23. Qd2 {[%clk 0:04:07.9]} 23... Nxa2
{[%clk 0:03:12]} 24. Qh6 {[%clk 0:04:05.7]} 24... f5 {[%clk 0:02:15.1]} 25. exf6
{[%clk 0:04:00.7]} 25... Rxf6 {[%clk 0:02:06.9]} 26. Nxf6+ {[%clk 0:03:57.7]}
26... Kf7 {[%clk 0:02:06.5]} 27. Nxh7 {[%clk 0:03:55.8]} 1-0

[Event "Live Chess"]
[Site "Chess.com"]
[Date "2024.06.01"]
[Round "-"]
[White "WilliamofOrange16th"]
[Black "yarek"]
[Result "1/2-1/2"]
[WhiteElo "1978"]
[BlackElo "1733"]
[TimeControl "300"]
[EndTime "12:48:20 PDT"]
[Termination "Game drawn by stalemate"]

1. e4 {[%clk 0:04:56.8]} 1... g6 {[%clk 0:04:59]} 2. d4 {[%clk 0:04:54.7]} 2...
Bg7 {[%clk 0:04:58.6]} 3. Nc3 {[%clk 0:04:54.4]} 3... c6 {[%clk 0:04:57.8]} 4.
Be2 {[%clk 0:04:53.6]} 4... d5 {[%clk 0:04:57.3]} 5. f3 {[%clk 0:04:46.3]} 5...
dxe4 {[%clk 0:04:51.5]} 6. fxe4 {[%clk 0:04:45.4]} 6... e5 {[%clk 0:04:49.8]} 7.
dxe5 {[%clk 0:04:36.8]} 7... Qxd1+ {[%clk 0:04:47.5]} 8. Bxd1 {[%clk 0:04:32.4]}
8... Bxe5 {[%clk 0:04:47.1]} 9. Bd2 {[%clk 0:04:27.7]} 9... Nf6 {[%clk
0:04:45.4]} 10. Nf3 {[%clk 0:04:25.5]} 10... Bc7 {[%clk 0:04:38.8]} 11. O-O
{[%clk 0:04:22.9]} 11... O-O {[%clk 0:04:36.5]} 12. Bg5 {[%clk 0:04:05.1]} 12...
Ng4 {[%clk 0:04:33.1]} 13. h3 {[%clk 0:04:00.9]} 13... Ne5 {[%clk 0:04:31.9]}
14. Bf6 {[%clk 0:03:36.6]} 14... Nxf3+ {[%clk 0:04:19.7]} 15. Bxf3 {[%clk
0:03:34.7]} 15... Nd7 {[%clk 0:04:19]} 16. Bh4 {[%clk 0:03:27.7]} 16... Ne5
{[%clk 0:04:17.2]} 17. Be2 {[%clk 0:03:21.1]} 17... Be6 {[%clk 0:04:12.7]} 18.
Rad1 {[%clk 0:03:18.4]} 18... Kg7 {[%clk 0:04:05.1]} 19. b3 {[%clk 0:03:12.4]}
19... f6 {[%clk 0:04:03.1]} 20. Nb1 {[%clk 0:03:10.4]} 20... Rad8 {[%clk
0:03:42.6]} 21. Bf2 {[%clk 0:03:08.7]} 21... Bb6 {[%clk 0:03:30]} 22. Bxb6
{[%clk 0:02:54.7]} 22... axb6 {[%clk 0:03:29.9]} 23. Nd2 {[%clk 0:02:53.7]}
23... Rd4 {[%clk 0:03:13.6]} 24. c3 {[%clk 0:02:34.7]} 24... Rd6 {[%clk
0:03:05.5]} 25. Nf3 {[%clk 0:02:32.8]} 25... Nxf3+ {[%clk 0:03:02.2]} 26. Bxf3
{[%clk 0:02:30.3]} 26... Rfd8 {[%clk 0:03:00.6]} 27. Rxd6 {[%clk 0:02:21.6]}
27... Rxd6 {[%clk 0:03:00.5]} 28. Rd1 {[%clk 0:02:19.5]} 28... Rxd1+ {[%clk
0:02:53.9]} 29. Bxd1 {[%clk 0:02:19.4]} 29... Kf7 {[%clk 0:02:49.5]} 30. Kf2
{[%clk 0:02:18.6]} 30... Ke7 {[%clk 0:02:49.1]} 31. Ke3 {[%clk 0:02:18]} 31...
Kd6 {[%clk 0:02:48.6]} 32. a4 {[%clk 0:02:06.9]} 32... Ke5 {[%clk 0:02:46.1]}
33. b4 {[%clk 0:02:01.2]} 33... Ba2 {[%clk 0:02:34.2]} 34. Bc2 {[%clk 0:01:59]}
34... c5 {[%clk 0:02:26.6]} 35. a5 {[%clk 0:01:28.8]} 35... cxb4 {[%clk
0:02:09.4]} 36. cxb4 {[%clk 0:01:27.3]} 36... bxa5 {[%clk 0:02:05.9]} 37. bxa5
{[%clk 0:01:26.6]} 37... Bc4 {[%clk 0:02:03.1]} 38. Ba4 {[%clk 0:01:21.6]} 38...
Ba2 {[%clk 0:01:59.1]} 39. Bc2 {[%clk 0:01:13.2]} 39... Bc4 {[%clk 0:01:57.1]}
40. g3 {[%clk 0:01:11.8]} 40... Bf1 {[%clk 0:01:50]} 41. h4 {[%clk 0:01:10.9]}
41... Bg2 {[%clk 0:01:42]} 42. Bd3 {[%clk 0:01:07.5]} 42... h6 {[%clk
0:01:37.5]} 43. Bc2 {[%clk 0:00:47.2]} 43... g5 {[%clk 0:01:35.7]} 44. hxg5
{[%clk 0:00:45.9]} 44... fxg5 {[%clk 0:01:34]} 45. Kd3 {[%clk 0:00:42.4]} 45...
Bxe4+ {[%clk 0:01:31.8]} 46. Kc3 {[%clk 0:00:41.5]} 46... Bxc2 {[%clk 0:01:31]}
47. Kxc2 {[%clk 0:00:41.1]} 47... h5 {[%clk 0:01:29.7]} 48. Kd3 {[%clk
0:00:38.7]} 48... h4 {[%clk 0:01:29.2]} 49. gxh4 {[%clk 0:00:37.4]} 49... gxh4
{[%clk 0:01:28.2]} 50. Ke3 {[%clk 0:00:37.3]} 50... Kd5 {[%clk 0:01:24.9]} 51.
Kf3 {[%clk 0:00:36.8]} 51... Kc5 {[%clk 0:01:24.5]} 52. Kg4 {[%clk 0:00:36.1]}
52... Kb5 {[%clk 0:01:24.4]} 53. Kxh4 {[%clk 0:00:36]} 53... Kxa5 {[%clk
0:01:23.9]} 54. Kg3 {[%clk 0:00:35.9]} 54... Kb4 {[%clk 0:01:22.7]} 55. Kf2
{[%clk 0:00:35.8]} 55... Kc3 {[%clk 0:01:21.9]} 56. Ke1 {[%clk 0:00:35.7]} 56...
b6 {[%clk 0:01:20.5]} 57. Kd1 {[%clk 0:00:35.6]} 57... b5 {[%clk 0:01:19.6]} 58.
Kc1 {[%clk 0:00:35.5]} 58... b4 {[%clk 0:01:17.5]} 59. Kb1 {[%clk 0:00:35.4]}
59... Kb3 {[%clk 0:01:16.4]} 60. Kc1 {[%clk 0:00:35.3]} 60... Ka3 {[%clk
0:01:15.4]} 61. Kb1 {[%clk 0:00:35.2]} 61... b3 {[%clk 0:01:14.3]} 62. Ka1
{[%clk 0:00:35.1]} 62... b2+ {[%clk 0:00:58.1]} 63. Kb1 {[%clk 0:00:34.3]} 63...
Kb3 {[%clk 0:00:53.7]} 1/2-1/2

[Event "Live Chess"]
[Site "Chess.com"]
[Date "2024.06.01"]
[Round "-"]
[White "Demyan7777"]
[Black "peteopeteo"]
[Result "1-0"]
[WhiteElo "1813"]
[BlackElo "1600"]
[TimeControl "300"]
[EndTime "12:48:36 PDT"]
[Termination "Demyan7777 won by resignation"]

1. e4 {[%clk 0:04:57]} 1... c6 {[%clk 0:04:59.4]} 2. d4 {[%clk 0:04:54.8]} 2...
d5 {[%clk 0:04:59.3]} 3. exd5 {[%clk 0:04:54.4]} 3... cxd5 {[%clk 0:04:59.2]} 4.
c4 {[%clk 0:04:53.9]} 4... Nf6 {[%clk 0:04:59.1]} 5. Nc3 {[%clk 0:04:52.1]} 5...
Nc6 {[%clk 0:04:56.2]} 6. Nf3 {[%clk 0:04:51.6]} 6... Bg4 {[%clk 0:04:54.9]} 7.
cxd5 {[%clk 0:04:50.1]} 7... Nxd5 {[%clk 0:04:53.4]} 8. Qb3 {[%clk 0:04:49.8]}
8... Nb6 {[%clk 0:04:34.2]} 9. Bb5 {[%clk 0:04:45.2]} 9... e6 {[%clk 0:04:29.9]}
10. Ne5 {[%clk 0:04:42]} 10... Qc7 {[%clk 0:04:14.3]} 11. Nxg4 {[%clk
0:04:39.3]} 11... O-O-O {[%clk 0:04:11.3]} 12. Bxc6 {[%clk 0:04:36.7]} 12...
Qxc6 {[%clk 0:04:08.5]} 13. Ne3 {[%clk 0:04:32.6]} 13... Bd6 {[%clk 0:04:01.5]}
14. Bd2 {[%clk 0:04:29.6]} 14... Kb8 {[%clk 0:04:00.3]} 15. Rc1 {[%clk 0:04:28]}
15... Qd7 {[%clk 0:03:57.1]} 16. O-O {[%clk 0:04:23.8]} 16... f5 {[%clk
0:03:55.3]} 17. Nb5 {[%clk 0:04:21.3]} 17... Qe7 {[%clk 0:03:53.9]} 18. Nc4
{[%clk 0:04:11]} 18... Nd5 {[%clk 0:03:49.4]} 19. Nbxd6 {[%clk 0:04:06.6]} 19...
Rxd6 {[%clk 0:03:49.3]} 20. Nxd6 {[%clk 0:04:04.3]} 20... Qxd6 {[%clk
0:03:49.2]} 21. Qg3 {[%clk 0:04:00.2]} 21... f4 {[%clk 0:03:44.2]} 22. Qxg7
{[%clk 0:03:58.5]} 22... Rf8 {[%clk 0:03:41.6]} 23. Qe5 {[%clk 0:03:54.1]} 23...
Qxe5 {[%clk 0:03:36.7]} 24. dxe5 {[%clk 0:03:53.3]} 24... f3 {[%clk 0:03:35]}
25. g3 {[%clk 0:03:51.6]} 25... h5 {[%clk 0:03:32.4]} 26. Rfe1 {[%clk
0:03:50.4]} 26... h4 {[%clk 0:03:31]} 27. Bh6 {[%clk 0:03:46.5]} 27... hxg3
{[%clk 0:03:25.3]} 28. hxg3 {[%clk 0:03:44.2]} 28... Rh8 {[%clk 0:03:19.6]} 29.
Bf4 {[%clk 0:03:39.6]} 29... Rg8 {[%clk 0:03:17]} 30. Be3 {[%clk 0:03:34.3]}
30... Nb4 {[%clk 0:03:06.4]} 31. Bc5 {[%clk 0:03:29.3]} 31... Nd3 {[%clk
0:03:04]} 32. Bd6+ {[%clk 0:03:28.2]} 32... Ka8 {[%clk 0:03:01.8]} 33. Red1
{[%clk 0:03:26.5]} 33... Nxb2 {[%clk 0:02:54.4]} 34. Rd2 {[%clk 0:03:20.5]}
34... Na4 {[%clk 0:02:48.1]} 35. Rdc2 {[%clk 0:03:19.5]} 35... Nb6 {[%clk
0:02:46.1]} 36. a4 {[%clk 0:03:17.1]} 36... a6 {[%clk 0:02:41]} 37. a5 {[%clk
0:03:16]} 37... Nd5 {[%clk 0:02:39.6]} 38. Rc8+ {[%clk 0:03:13.1]} 38... Rxc8
{[%clk 0:02:37.8]} 39. Rxc8+ {[%clk 0:03:11.7]} 39... Ka7 {[%clk 0:02:37.3]} 40.
Bc5+ {[%clk 0:03:09.6]} 40... b6 {[%clk 0:02:36.8]} 41. axb6+ {[%clk 0:03:05.8]}
41... Nxb6 {[%clk 0:02:36.7]} 42. Rc7+ {[%clk 0:03:04.7]} 42... Kb8 {[%clk
0:02:35.9]} 43. Bxb6 {[%clk 0:03:04.4]} 43... a5 {[%clk 0:02:35.3]} 44. Bxa5
{[%clk 0:03:03.7]} 44... Ka8 {[%clk 0:02:33.5]} 45. g4 {[%clk 0:03:02.4]} 45...
Kb8 {[%clk 0:02:32.9]} 46. g5 {[%clk 0:03:02.2]} 46... Ka8 {[%clk 0:02:32.2]}
47. g6 {[%clk 0:03:01.5]} 47... Kb8 {[%clk 0:02:32.1]} 48. g7 {[%clk 0:03:00.4]}
1-0

[Event "Live Chess"]
[Site "Chess.com"]
[Date "2024.06.01"]
[Round "-"]
[White "Eva3337"]
[Black "koekoekoe"]
[Result "0-1"]
[WhiteElo "1156"]
[BlackElo "2058"]
[TimeControl "300"]
[EndTime "12:48:45 PDT"]
[Termination "koekoekoe won by resignation"]

1. e4 {[%clk 0:04:55.1]} 1... d5 {[%clk 0:04:59.9]} 2. e5 {[%clk 0:04:52.7]}
2... c5 {[%clk 0:04:58.8]} 3. c3 {[%clk 0:04:50.4]} 3... Nc6 {[%clk 0:04:58.3]}
4. d4 {[%clk 0:04:49.5]} 4... cxd4 {[%clk 0:04:57.4]} 5. cxd4 {[%clk 0:04:48.2]}
5... Bf5 {[%clk 0:04:56.9]} 6. Nf3 {[%clk 0:04:46.7]} 6... e6 {[%clk 0:04:56.4]}
7. Nc3 {[%clk 0:04:40.6]} 7... Bb4 {[%clk 0:04:51]} 8. Bd2 {[%clk 0:04:39.1]}
8... Nge7 {[%clk 0:04:49]} 9. Nb5 {[%clk 0:04:31.6]} 9... O-O {[%clk 0:04:33.4]}
10. Bxb4 {[%clk 0:04:28.7]} 10... Nxb4 {[%clk 0:04:32.7]} 11. Nd6 {[%clk
0:04:26.9]} 11... Nc2+ {[%clk 0:04:28.3]} 12. Ke2 {[%clk 0:04:20.3]} 12... Nxa1
{[%clk 0:04:16.7]} 13. Nxf5 {[%clk 0:04:16.6]} 13... Nxf5 {[%clk 0:04:12.9]} 14.
Qxa1 {[%clk 0:04:14.4]} 14... Qb6 {[%clk 0:04:07.6]} 15. b3 {[%clk 0:04:00.7]}
15... Rac8 {[%clk 0:04:05.2]} 16. Ke1 {[%clk 0:03:52.1]} 16... Rc7 {[%clk
0:03:59.6]} 17. Bd3 {[%clk 0:03:47.6]} 17... Rfc8 {[%clk 0:03:47.5]} 18. Ke2
{[%clk 0:03:38.3]} 18... g6 {[%clk 0:03:34.5]} 19. Bxf5 {[%clk 0:03:16.3]} 19...
gxf5 {[%clk 0:03:34.4]} 20. Rd1 {[%clk 0:03:00.2]} 20... Rc2+ {[%clk 0:03:19.9]}
21. Rd2 {[%clk 0:02:48.1]} 21... Qb5+ {[%clk 0:03:14.1]} 22. Kd1 {[%clk
0:02:41.2]} 22... Qf1+ {[%clk 0:03:03.3]} 23. Ne1 {[%clk 0:02:38.2]} 23... Rc1+
{[%clk 0:02:53.3]} 24. Qxc1 {[%clk 0:02:33.3]} 24... Rxc1+ {[%clk 0:02:53.2]}
25. Kxc1 {[%clk 0:02:31.6]} 25... Qxe1+ {[%clk 0:02:52.5]} 26. Rd1 {[%clk
0:02:31.5]} 26... Qxf2 {[%clk 0:02:49.2]} 27. Rd2 {[%clk 0:02:29.4]} 27... Qg1+
{[%clk 0:02:45.1]} 28. Kc2 {[%clk 0:02:26.8]} 28... Qxh2 {[%clk 0:02:44.6]} 29.
b4 {[%clk 0:02:24.6]} 29... Qg3 {[%clk 0:02:41]} 30. a4 {[%clk 0:02:22.8]} 30...
Qa3 {[%clk 0:02:38.4]} 0-1